bitfinex/quotes_SOLUSD_20250714
["timestamp","ask_amount","ask_price","bid_price","bid_amount"]
[1752504547232,65.45650333,166.06,166.05,0.03000001]
[1752504547430,80.5113028,166.06,166.0,0.2]
[1752504547630,10.12989958,166.01,166.0,0.2]
[1752504547940,42.64989958,166.01,166.0,0.88]
[1752504548249,42.64989958,166.01,166.0,0.2]
[1752504548830,0.75283064,166.04,166.0,0.88]
[1752504548831,10.12989958,166.02,166.0,0.88]
[1752504549032,33.27296668,166.01,166.0,0.88]
[1752504549235,33.27296668,166.01,166.0,0.2]
[1752504549430,0.75296668,166.01,166.0,0.2]
[1752504549729,33.27296668,166.01,166.0,0.88]
[1752504550144,49.42659977,166.01,166.0,0.2]
[1752504550347,60.18755023,166.01,166.0,0.2]
[1752504550550,16.78468397,166.0,165.93,0.2]
[1752504550738,26.91458355,165.94,165.93,0.2]
[1752504550928,59.43458355,165.94,165.93,0.2]
[1752504551122,43.40318389,165.94,165.93,0.88]
[1752504551548,16.90945844,165.94,165.93,0.88]
[1752504551859,49.42945844,165.94,165.93,0.88]
[1752504552230,49.42945844,165.94,165.93,0.2]
[1752504552433,66.21414241,165.94,165.93,0.2]
[1752504553350,66.21414241,165.94,165.93,1e-08]
[1752504554832,16.78468397,165.93,165.88,0.2]
[1752504555033,10.12989958,165.89,165.88,0.2]
[1752504555235,43.40341094,165.89,165.88,0.2]
[1752504555426,0.75351136,165.89,165.88,0.2]
[1752504555635,49.35799048,165.89,165.88,0.2]
[1752504555844,76.27257403,165.89,165.88,0.2]
[1752504556044,77.02608539,165.89,165.88,1e-08]
[1752504556242,16.78468397,165.88,165.83,1e-08]
[1752504556556,10.12989958,165.84,165.83,1e-08]
[1752504556867,32.52,165.84,165.83,1e-08]
[1752504557164,0.75360221,165.87,165.83,0.68000001]
[1752504557360,10.12989958,165.84,165.83,0.68000001]
[1752504557530,42.64989958,165.84,165.83,0.68000001]
[1752504557732,10.12989958,165.86,165.83,0.68000001]
[1752504557944,10.12989958,165.88,165.84,1.5363]
[1752504558234,16.78468397,165.9,165.84,1.5363]
[1752504558235,32.52,165.87,165.84,1.5363]
[1752504558541,32.52,165.87,165.85,0.68]
[1752504559261,10.88341094,165.89,165.85,0.68]
[1752504559464,33.27355678,165.88,165.85,0.68]
[1752504559760,10.12989958,165.86,165.84,1.5363]
[1752504559970,10.88354723,165.86,165.84,1.5363]
[1752504561036,31.85309455,165.91,165.84,1.5363]
[1752504561037,42.68989958,165.87,165.84,1.5363]
[1752504561660,15.81932525,165.94,165.85,10.12989958]
[1752504561936,10.12989958,165.9,165.85,10.12989958]
[1752504562164,32.54,165.9,165.85,10.12989958]
[1752504562458,0.75346594,165.9,165.86,10.12989958]
[1752504562850,10.8833201,165.91,165.86,10.12989958]
[1752504563660,10.12989958,165.96,165.9,10.12989958]
[1752504563857,10.12989958,165.97,165.91,10.12989958]
[1752504564156,43.42300236,165.98,165.93,10.12989958]
[1752504564341,43.42300236,165.98,165.92,10.12989958]
[1752504564542,10.12989958,165.97,165.92,10.12989958]
[1752504564737,0.75314815,165.97,165.92,10.12989958]
[1752504564942,32.54,165.98,165.93,10.12989958]
[1752504565161,10.88291162,166.0,165.95,16.55199958]
[1752504565333,43.42291162,166.0,165.95,16.55199958]
[1752504565645,32.54,166.0,165.97,1.5883]
[1752504565831,10.88286626,166.01,165.97,1.5883]
[1752504566238,10.12989958,166.0,165.97,1.5883]
[1752504566481,10.12989958,165.98,165.95,6.4221]
[1752504566652,10.12989958,165.97,165.95,6.4221]
[1752504566969,10.88309312,165.96,165.95,6.4221]
[1752504567151,10.88309312,165.96,165.93,1.5883]
[1752504567542,10.12989958,165.97,165.93,1.5883]
[1752504567962,10.12989958,165.95,165.93,1.5883]
[1752504568358,10.8831385,165.95,165.93,1.5883]
[1752504568533,10.12989958,165.94,165.91,6.1814]
[1752504568738,0.75323892,165.95,165.91,6.1814]
[1752504568938,16.28758413,165.95,165.91,6.1814]
[1752504569138,15.53434521,165.92,165.91,6.1814]
[1752504569341,15.53434521,165.92,165.89,1.5237]
[1752504569541,15.53434521,165.9,165.87,6.5018]
[1752504569753,16.28785657,165.89,165.87,6.5018]
[1752504569964,48.07434521,165.9,165.87,6.5018]
[1752504570141,54.85566138,165.9,165.87,6.5018]
[1752504570464,16.28785657,165.89,165.85,1.5537]
[1752504570660,0.75351136,165.89,165.85,1.5537]
[1752504570846,15.53434521,165.88,165.85,1.5537]
[1752504571249,16.28794742,165.87,165.85,1.5537]
[1752504571645,15.53434521,165.86,165.85,0.03]
[1752504571867,21.56352644,165.86,165.85,0.03]
[1752504572171,6.02918123,165.86,165.85,0.03]
[1752504572466,21.56352644,165.86,165.85,0.03]
[1752504572660,15.53434521,165.86,165.85,0.03]
[1752504573068,54.85683346,165.87,165.85,0.03]
[1752504573264,33.29346594,165.9,165.85,15.56434521]
[1752504573447,33.29346594,165.9,165.86,15.53434521]
[1752504573869,33.29346594,165.9,165.85,0.03]
[1752504574169,15.53434521,165.89,165.85,0.03]
[1752504574374,16.28785657,165.89,165.85,0.03]
[1752504575547,0.75351136,165.89,165.85,0.03]
[1752504575750,15.53434521,165.87,165.85,0.03]
[1752504575944,0.75364765,165.86,165.85,0.03]
[1752504576144,22.31717409,165.86,165.85,0.03]
[1752504576546,6.78282888,165.86,165.85,0.03]
[1752504576749,22.31717409,165.86,165.85,0.03]
[1752504577069,6.78282888,165.86,165.85,0.03]
[1752504577247,16.28790199,165.88,165.85,0.03]
[1752504577447,0.75355678,165.88,165.85,0.03]
[1752504577862,22.31639511,165.88,165.85,0.03]
[1752504578074,21.56328655,165.87,165.85,0.03]
[1752504578260,54.85688876,165.87,165.85,0.03]
[1752504578481,48.82794742,165.87,165.85,0.03]
[1752504578765,33.29360221,165.87,165.85,0.03]
[1752504580268,54.85687523,165.87,165.85,0.03]
[1752504580448,32.31902918,165.86,165.85,1e-08]
[1752504582075,38.34821041,165.86,165.85,1e-08]
[1752504583673,16.78468397,165.85,165.82,1e-08]
[1752504583847,32.31902918,165.83,165.82,1e-08]
[1752504584043,70.94930114,165.83,165.82,1e-08]
[1752504584670,22.81495593,165.83,165.82,1e-08]
[1752504584859,0.75378399,165.83,165.82,1e-08]
[1752504585054,22.31686781,165.87,165.82,15.53434522]
[1752504585256,0.75360221,165.87,165.82,15.53434522]
[1752504585472,48.15434521,165.86,165.82,1e-08]
[1752504585665,16.2880383,165.85,165.82,1e-08]
[1752504585870,33.35369309,165.85,165.82,1e-08]
[1752504586085,32.6,165.86,165.82,1e-08]
[1752504586380,32.6,165.85,165.82,1e-08]
[1752504586559,32.6,165.85,165.82,15.53434522]
[1752504586967,32.6,165.85,165.82,1e-08]
[1752504587257,15.53434521,165.83,165.82,1e-08]
[1752504587468,33.35378399,165.83,165.82,1e-08]
[1752504588079,48.8881292,165.83,165.82,1e-08]
[1752504588374,54.91840116,165.83,165.82,1e-08]
[1752504589084,49.56460645,165.83,165.82,1e-08]
[1752504589672,6.78405595,165.83,165.82,1e-08]
[1752504589976,48.79082246,165.83,165.82,1e-08]
[1752504590682,48.77082246,165.83,165.82,1e-08]
[1752504591483,65.55550643,165.83,165.82,1e-08]
[1752504591980,16.78468397,165.82,165.8,2502.08842331]
[1752504592185,78.33910938,165.81,165.8,2365.19324533]
[1752504592356,98.51965988,165.81,165.8,2078.98449281]
[1752504592679,104.55065921,165.81,165.8,1920.0538321]
[1752504592879,94.37010871,165.81,165.8,1827.64446059]
[1752504593065,99.78603786,165.81,165.8,1827.64446059]
[1752504593682,99.78603786,165.81,165.8,1823.16863614]
[1752504594177,70.34833186,165.81,165.8,1823.16863614]
[1752504594380,102.92833186,165.81,165.8,1823.16863614]
[1752504594976,102.92833186,165.81,165.8,1663.18389092]
[1752504595672,118.79361151,165.81,165.8,1474.3193736]
[1752504596009,91.91291318,165.81,165.8,1250.35776682]
[1752504596164,124.59291318,165.81,165.8,1150.87217013]
[1752504596360,123.83903827,165.81,165.8,1010.74673504]
[1752504596567,95.06102828,165.81,165.8,864.56492839]
[1752504596769,128.53490319,165.81,165.8,796.85405154]
[1752504597077,95.06102828,165.81,165.8,757.73879128]
[1752504597294,146.62345582,165.81,165.8,712.90353102]
[1752504597614,146.62345582,165.81,165.8,676.80353102]
[1752504597615,141.97333927,165.81,165.8,676.80353102]
[1752504597761,141.97333927,165.81,165.8,673.78827076]
[1752504597962,141.97333927,165.81,165.8,655.73827076]
[1752504598165,141.97333927,165.81,165.8,652.7206443]
[1752504598389,141.95333927,165.81,165.8,652.7206443]
[1752504598556,141.95333927,165.81,165.8,649.70301784]
[1752504598891,141.95333927,165.81,165.8,646.68539138]
[1752504599294,109.27333927,165.81,165.8,619.89776492]
[1752504599469,142.70721418,165.81,165.8,619.89776492]
[1752504599666,141.95333927,165.81,165.8,616.88013846]
[1752504599889,141.93333927,165.81,165.8,616.88013846]
[1752504600081,141.93333927,165.81,165.8,613.862512]
[1752504600291,141.93333927,165.81,165.8,613.2593757]
[1752504600475,141.93333927,165.81,165.8,610.24174924]
[1752504600870,109.27333927,165.81,165.8,607.22412278]
[1752504601093,110.02721418,165.81,165.8,607.22412278]
[1752504601393,92.21174956,165.81,165.8,607.22412278]
[1752504601592,107.78822921,165.81,165.8,607.22412278]
[1752504601783,76.33643353,165.81,165.8,607.22412278]
[1752504602097,74.15174956,165.81,165.8,607.22412278]
[1752504602391,35.50364789,165.81,165.8,607.22412278]
[1752504602681,68.16364789,165.81,165.8,607.22412278]
[1752504602884,84.94833186,165.81,165.8,607.22412278]
[1752504603284,52.28833186,165.81,165.8,607.22412278]
[1752504603513,68.16364789,165.81,165.8,607.22412278]
[1752504603684,35.50364789,165.81,165.8,607.22412278]
[1752504603988,58.14364789,165.81,165.8,607.22412278]
[1752504604173,25.50364789,165.81,165.8,607.22412278]
[1752504604376,55.00135389,165.81,165.8,607.22412278]
[1752504604578,48.97035456,165.81,165.8,607.22412278]
[1752504604800,16.33035456,165.81,165.8,607.22412278]
[1752504604967,48.97035456,165.81,165.8,607.22412278]
[1752504605681,33.39387491,165.81,165.8,607.22412278]
[1752504605889,48.97035456,165.81,165.8,607.22412278]
[1752504606068,16.33035456,165.81,165.8,607.22412278]
[1752504606276,75.71503853,165.81,165.8,607.22412278]
[1752504606875,75.71503853,165.81,165.8,607.25412278]
[1752504607074,76.21503853,165.81,165.8,607.25412278]
[1752504608579,98.82777721,165.81,165.8,607.25412278]
[1752504608774,83.25129756,165.81,165.8,607.25412278]
[1752504610378,83.25129756,165.81,165.8,604.09354347]
[1752504610379,117.17657721,165.81,165.8,604.09354347]
[1752504610588,117.17657721,165.81,165.8,580.32354347]
[1752504610784,153.24657721,165.81,165.8,577.30822104]
[1752504611019,153.24657721,165.81,165.8,532.4487599]
[1752504611020,152.4927023,165.81,165.8,532.4487599]
[1752504611194,123.76676034,165.81,165.8,511.23003047]
[1752504611378,152.4727023,165.81,165.8,492.91843047]
[1752504611581,152.4727023,165.81,165.8,489.90043965]
[1752504611977,152.4727023,165.81,165.8,465.68950602]
[1752504612201,156.34471655,165.81,165.8,447.63950602]
[1752504612498,152.4727023,165.81,165.8,426.5715152]
[1752504612699,152.4727023,165.81,165.8,426.2002152]
[1752504612996,121.319743,165.81,165.8,423.18222438]
[1752504613190,121.319743,165.81,165.8,420.16423356]
[1752504613694,52.669743,165.81,165.8,417.14624274]
[1752504613891,103.380764,165.81,165.8,417.14624274]
[1752504614085,70.780764,165.81,165.8,414.12825192]
[1752504614394,86.59608003,165.81,165.8,414.12825192]
[1752504614776,103.380764,165.81,165.8,414.12825192]
[1752504615093,103.380764,165.81,165.8,411.11110941]
[1752504615294,103.380764,165.81,165.8,408.0939669]
[1752504615595,85.269743,165.81,165.8,408.0939669]
[1752504615795,85.269743,165.81,165.8,405.07682439]
[1752504616176,85.269743,165.81,165.8,402.05968188]
[1752504616574,85.269743,165.81,165.8,399.04253937]
[1752504616978,85.269743,165.81,165.8,396.02539686]
[1752504617396,85.269743,165.81,165.8,326.79403607]
[1752504617782,85.269743,165.81,165.8,177.07689356]
[1752504618186,85.269743,165.81,165.8,174.05975105]
[1752504618388,85.269743,165.81,165.79,0.1]
[1752504618389,10.0,165.76,165.75,0.03]
[1752504618592,10.0,165.69,165.68,0.1]
[1752504618789,43.10044169,165.69,165.68,0.1]
[1752504618975,46.8696206,165.69,165.68,0.1]
[1752504621014,14.2696206,165.69,165.68,0.1]
[1752504621306,46.8696206,165.69,165.68,0.1]
[1752504622309,81.71430457,165.69,165.68,0.1]
[1752504622520,14.2696206,165.69,165.68,0.1]
[1752504623025,46.8696206,165.69,165.68,0.1]
[1752504624102,42.6,165.69,165.68,0.1]
[1752504624935,36.06,165.7,165.68,0.1]
[1752504625227,10.0,165.72,165.69,1.5563]
[1752504625635,32.6,165.71,165.69,1.5563]
[1752504627505,32.6,165.7,165.69,1.5563]
[1752504627698,42.6,165.7,165.69,1.5563]
[1752504629221,42.6,165.7,165.69,1.5863]
[1752504629735,46.8696206,165.7,165.69,0.03]
[1752504630226,63.65430457,165.7,165.69,0.03]
[1752504630522,46.8696206,165.7,165.69,0.03]
[1752504632017,63.65430457,165.7,165.69,0.03]
[1752504634319,31.05430457,165.7,165.69,0.03]
[1752504634628,44.84468397,165.69,165.68,0.1]
[1752504634805,55.01572095,165.69,165.68,0.1]
[1752504635129,10.0,165.64,165.63,0.1]
[1752504635427,48.88004711,165.64,165.63,0.1]
[1752504637126,16.28004711,165.64,165.63,0.1]
[1752504637303,48.88004711,165.64,165.63,0.1]
[1752504637503,33.06473108,165.64,165.63,0.1]
[1752504637710,65.66473108,165.64,165.63,0.1]
[1752504638332,76.69993108,165.64,165.63,0.1]
[1752504638508,76.69993108,165.64,165.62,0.03]
[1752504638509,26.78468397,165.63,165.62,0.03]
[1752504638915,33.06473108,165.63,165.62,0.03]
[1752504639321,68.69196703,165.63,165.62,0.03]
[1752504639631,19.30728306,165.63,165.62,0.03]
[1752504639835,45.62723595,165.63,165.62,0.03]
[1752504640038,13.02723595,165.63,165.62,0.03]
[1752504640532,62.41191992,165.63,165.62,0.03]
[1752504640734,10.0,165.54,165.5,1.5974]
[1752504641120,10.0,165.52,165.5,1.5974]
[1752504641419,32.62,165.51,165.5,1.5974]
[1752504641739,42.62,165.51,165.5,1.5974]
[1752504642236,10.0,165.48,165.41,1.6142]
[1752504642413,32.62,165.47,165.41,1.6142]
[1752504642818,10.0,165.5,165.41,1.6142]
[1752504643139,32.62,165.49,165.41,1.6142]
[1752504643621,10.0,165.48,165.41,1.6142]
[1752504643820,32.62,165.47,165.41,1.6142]
[1752504644036,11.07210546,165.51,165.43,10.747]
[1752504644333,32.62,165.5,165.43,12.3186]
[1752504645150,146.7,165.56,165.45,12.3186]
[1752504645151,10.0,165.56,165.45,12.3186]
[1752504645443,4.88421456,165.56,165.46,16.78468397]
[1752504645631,32.62,165.55,165.46,16.78468397]
[1752504645812,32.62,165.54,165.46,16.78468397]
[1752504646019,32.62,165.53,165.46,16.78468397]
[1752504646216,32.62,165.52,165.46,16.78468397]
[1752504646416,10.0,165.57,165.46,16.78468397]
[1752504646634,32.62,165.56,165.46,16.78468397]
[1752504647414,6.28004711,165.61,165.48,26.98626567]
[1752504647621,32.62,165.6,165.48,26.98626567]
[1752504647923,32.62,165.59,165.52,16.78468397]
[1752504648123,32.62,165.58,165.52,26.98626567]
[1752504648434,32.62,165.57,165.53,10.2015817]
[1752504648637,29.6413,165.56,165.54,16.78468397]
[1752504648842,17.7262,165.56,165.52,16.78468397]
[1752504649142,32.62,165.59,165.55,0.3555]
[1752504649331,32.62,165.59,165.57,11.4789]
[1752504649732,32.62,165.62,165.57,11.4789]
[1752504651345,32.62,165.62,165.58,16.78468397]
[1752504651548,32.62,165.62,165.59,10.2015817]
[1752504651746,12.9198,165.74,165.6,26.98626567]
[1752504651949,4.31764375,165.73,165.62,16.78468397]
[1752504652130,40.43331695,165.73,165.62,16.78468397]
[1752504652328,42.62,165.73,165.6,10.2015817]
[1752504652524,42.62,165.73,165.58,16.78468397]
[1752504652525,32.62,165.73,165.58,16.78468397]
[1752504652734,42.62,165.73,165.6,10.2015817]
[1752504652931,32.62,165.73,165.62,16.78468397]
[1752504653129,32.62,165.73,165.58,16.78468397]
[1752504653431,32.62,165.73,165.6,16.78468397]
[1752504653833,32.62,165.73,165.6,10.2015817]
[1752504654232,32.62,165.73,165.58,16.78468397]
[1752504654530,32.62,165.73,165.6,16.78468397]
[1752504654730,37.54650559,165.73,165.6,16.78468397]
[1752504654926,37.54650559,165.73,165.58,26.98626567]
[1752504655138,0.5,165.72,165.58,16.78468397]
[1752504655338,15.51936869,165.72,165.58,16.78468397]
[1752504656031,5.51936869,165.72,165.58,16.78468397]
[1752504656231,10.0,165.7,165.58,16.78468397]
[1752504656643,5.01936869,165.7,165.58,16.78468397]
[1752504657543,5.01936869,165.7,165.58,32.38290565]
[1752504657746,5.01936869,165.7,165.6,16.78468397]
[1752504657942,32.6,165.69,165.62,16.78468397]
[1752504658453,32.6,165.69,165.6,15.59822168]
[1752504659342,32.6,165.69,165.62,16.78468397]
[1752504659747,32.6,165.69,165.6,15.59822168]
[1752504660445,32.6,165.69,165.58,32.38290565]
[1752504660750,32.6,165.69,165.59,16.78468397]
[1752504660939,32.6,165.69,165.58,16.78468397]
[1752504661143,32.6,165.69,165.59,15.59822168]
[1752504661460,32.6,165.69,165.58,32.38290565]
[1752504661953,32.6,165.69,165.57,11.4789]
[1752504662128,5.01936869,165.68,165.57,11.4789]
[1752504662763,5.01936869,165.68,165.58,16.78468397]
[1752504662936,5.01936869,165.68,165.58,32.38290565]
[1752504663576,5.01936869,165.68,165.58,16.78468397]
[1752504663745,5.01936869,165.68,165.57,11.4789]
[1752504664457,172.95786869,165.68,165.54,0.03]
[1752504664678,10.0,165.66,165.54,0.03]
[1752504664955,5.01936869,165.65,165.54,0.03]
[1752504670359,31.30838397,165.64,165.54,0.03]
[1752504670576,10.0,165.61,165.54,0.03]
[1752504670881,10.0,165.59,165.54,0.03]
[1752504671036,32.6,165.58,165.54,0.03]
[1752504671232,32.6,165.57,165.54,0.03]
[1752504672442,5.01936869,165.56,165.54,0.03]
[1752504673075,2.7264,165.55,165.54,0.03]
[1752504673575,7.74576869,165.55,165.54,0.03]
[1752504674557,32.6,165.57,165.54,0.03]
[1752504676096,32.6,165.56,165.54,0.03]
[1752504679878,32.6,165.55,165.54,0.03]
[1752504681114,10.0,165.68,165.54,0.03]
[1752504681115,32.6,165.59,165.54,27.0338663]
[1752504681312,36.06,165.7,165.57,10.21918233]
[1752504681313,3.0193,165.69,165.57,10.21918233]
[1752504681475,4.33788302,165.68,165.59,10.21918233]
[1752504681882,4.33788302,165.68,165.6,10.21918233]
[1752504682111,32.6,165.67,165.6,10.21918233]
[1752504682589,32.6,165.67,165.61,16.78468397]
[1752504683003,32.6,165.67,165.61,10.21918233]
[1752504683386,32.6,165.67,165.59,16.78468397]
[1752504683606,32.6,165.67,165.61,16.78468397]
[1752504684513,32.6,165.68,165.61,16.78468397]
[1752504684726,32.6,165.68,165.61,28.51578397]
[1752504685015,32.6,165.7,165.63,10.21918233]
[1752504685394,32.6,165.7,165.65,16.78468397]
[1752504685804,32.6,165.7,165.65,10.21918233]
[1752504686003,32.6,165.7,165.61,11.7311]
[1752504686004,32.6,165.7,165.67,16.78468397]
[1752504686214,32.6,165.74,165.67,27.0038663]
[1752504686627,32.6,165.74,165.7,10.21918233]
[1752504686918,32.6,165.74,165.71,16.78468397]
[1752504687096,0.06,165.76,165.71,27.0038663]
[1752504687296,0.06,165.76,165.72,10.21918233]
[1752504687494,0.06,165.76,165.74,10.21918233]
[1752504688014,0.06,165.76,165.73,10.21918233]
[1752504688218,0.06,165.76,165.71,12.5265]
[1752504688394,0.06,165.76,165.75,16.78468397]
[1752504688795,0.06,165.76,165.74,10.21918233]
[1752504689019,0.06,165.76,165.75,16.78468397]
[1752504689520,0.06,165.76,165.74,16.78468397]
[1752504689705,0.06,165.76,165.74,15.56481814]
[1752504690316,0.06,165.76,165.75,15.56481814]
[1752504690524,0.06,165.76,165.72,16.78468397]
[1752504690814,0.06,165.76,165.75,15.56481814]
[1752504692011,0.06,165.76,165.73,15.56481814]
[1752504692317,0.06,165.76,165.74,15.56481814]
[1752504692811,0.06,165.76,165.75,15.56481814]
[1752504693229,0.06,165.76,165.75,16.16813639]
[1752504693516,0.06,165.76,165.75,32.95282036]
[1752504693721,0.06,165.81,165.76,17.40818397]
[1752504693913,0.06,165.81,165.8,15.56481814]
[1752504694115,0.06,165.81,165.8,44.38800211]
[1752504697095,0.06,165.82,165.81,16.78468397]
[1752504697290,0.06,165.82,165.81,65.85260204]
[1752504697494,0.06,165.83,165.81,65.85260204]
[1752504697710,0.06,165.83,165.82,32.34950211]
[1752504697913,0.06,165.88,165.85,16.78468397]
[1752504698099,0.06,165.89,165.87,32.34950211]
[1752504698303,0.06,165.89,165.88,32.95234754]
[1752504699026,0.06,165.89,165.88,65.81234754]
[1752504699197,0.06,165.89,165.88,50.2475294]
[1752504699405,0.06,165.89,165.88,32.34950211]
[1752504699825,0.06,165.96,165.89,16.78468397]
[1752504700211,0.06,165.96,165.89,32.34950211]
[1752504700413,0.06,165.96,165.84,8.9983]
[1752504700612,44.7505,165.94,165.78,12.1376]
[1752504700822,44.7505,165.94,165.78,27.70241814]
[1752504701030,5.78606925,165.89,165.82,32.34950211]
[1752504701505,5.78606925,165.89,165.82,15.56481814]
[1752504701712,0.06,165.89,165.82,15.56481814]
[1752504701908,0.06,165.89,165.84,16.78468397]
[1752504702129,0.06,165.89,165.81,16.78468397]
[1752504702421,0.06,165.89,165.86,16.78468397]
[1752504703329,0.06,165.89,165.83,16.78468397]
[1752504703499,0.06,165.89,165.84,15.56481814]
[1752504703701,0.06,165.89,165.86,16.78468397]
[1752504704727,0.06,165.89,165.83,16.78468397]
[1752504705027,0.06,165.89,165.85,32.34950211]
[1752504706311,0.06,165.89,165.85,15.56481814]
[1752504707415,0.06,165.89,165.84,16.78468397]
[1752504707814,0.06,165.89,165.84,32.34950211]
[1752504708020,0.06,165.89,165.86,16.78468397]
[1752504709327,0.06,165.89,165.83,16.78468397]
[1752504709629,0.06,165.89,165.83,32.34950211]
[1752504710410,0.06,165.89,165.85,16.78468397]
[1752504710626,0.06,165.89,165.81,16.78468397]
[1752504710828,0.06,165.89,165.83,15.56481814]
[1752504711028,0.06,165.89,165.85,16.78468397]
[1752504711431,0.06,165.89,165.85,26.95653146]
[1752504711731,0.06,165.89,165.87,16.78468397]
[1752504711917,0.06,165.89,165.85,10.17184749]
[1752504712317,0.06,165.89,165.86,16.78468397]
[1752504712533,0.06,165.89,165.87,10.17184749]
[1752504712730,0.06,165.89,165.82,16.78468397]
[1752504712909,0.06,165.89,165.86,10.17184749]
[1752504713627,0.06,165.89,165.88,16.78468397]
[1752504714509,0.06,165.89,165.88,26.95653146]
[1752504714912,0.06,165.96,165.88,82.13447895]
[1752504715129,0.06,165.96,165.89,27.55934055]
[1752504716936,0.06,165.96,165.89,16.78468397]
[1752504717249,11.5483,165.93,165.82,10.17184749]
[1752504717448,11.5483,165.93,165.79,14.749]
[1752504717449,11.5483,165.93,165.81,42.87184749]
[1752504717615,2.997,165.9,165.85,16.78468397]
[1752504718052,2.997,165.9,165.81,32.7]
[1752504718255,2.997,165.9,165.85,16.78468397]
[1752504718536,2.997,165.9,165.84,26.0]
[1752504718728,2.997,165.9,165.85,16.78468397]
[1752504719237,0.06,165.9,165.87,16.78468397]
[1752504719615,0.06,165.9,165.85,16.78468397]
[1752504720517,0.06,165.9,165.89,16.78468397]
[1752504720948,0.06,165.9,165.87,16.78468397]
[1752504721423,0.06,165.9,165.85,16.78468397]
[1752504721846,0.06,165.9,165.83,0.03]
[1752504724319,0.06,165.9,165.83,16.81468397]
[1752504724719,0.06,165.9,165.83,0.03]
[1752504726651,3.0617,165.89,165.83,0.03]
[1752504728939,12.2982,165.88,165.83,1e-08]
[1752504729540,2.9888,165.87,165.76,0.03]
[1752504729729,17.31756869,165.86,165.76,0.03]
[1752504729936,2.9888,165.85,165.76,0.03]
[1752504730252,37.71936869,165.84,165.76,0.03]
[1752504731966,2.9384,165.83,165.76,0.03]
[1752504732334,7.95776869,165.83,165.76,0.03]
[1752504732533,10.8994105,165.83,165.69,10.17184749]
[1752504732755,7.95776869,165.83,165.72,10.17184749]
[1752504733068,2.9384,165.83,165.73,26.95653146]
[1752504733747,2.9384,165.83,165.75,16.78468397]
[1752504733949,2.9384,165.83,165.75,26.95653146]
[1752504734126,2.9384,165.83,165.67,11.483]
[1752504734127,2.9384,165.83,165.79,16.78468397]
[1752504734322,12.2982,165.86,165.79,26.95653146]
[1752504734861,3.0258,165.87,165.81,16.78468397]
[1752504735070,3.0258,165.87,165.81,26.95653146]
[1752504735365,3.0258,165.87,165.83,16.78468397]
[1752504735569,12.3743,165.9,165.83,16.78468397]
[1752504735782,12.3743,165.9,165.83,26.95653146]
[1752504735982,12.3743,165.9,165.81,16.78468397]
[1752504736172,12.3743,165.9,165.83,16.78468397]
[1752504736666,12.3743,165.9,165.83,10.17184749]
[1752504736981,12.3743,165.9,165.83,16.78468397]
[1752504737681,12.3743,165.9,165.83,26.95653146]
[1752504738057,0.06,165.9,165.83,26.95653146]
[1752504738764,0.06,165.9,165.83,16.78468397]
[1752504739387,0.06,165.9,165.83,10.17184749]
[1752504740173,0.06,165.9,165.83,16.78468397]
[1752504740684,0.06,165.9,165.8,16.78468397]
[1752504740968,0.06,165.9,165.81,16.78468397]
[1752504741344,0.06,165.9,165.76,0.03]
[1752504741582,12.2051,165.89,165.77,16.78468397]
[1752504741871,12.2051,165.89,165.77,26.95653146]
[1752504742074,12.2051,165.89,165.76,0.03]
[1752504742447,12.2051,165.89,165.81,26.95653146]
[1752504742643,12.2051,165.89,165.83,16.78468397]
[1752504743254,12.2051,165.89,165.79,16.78468397]
[1752504743477,12.2051,165.89,165.81,16.78468397]
[1752504743663,0.06,165.9,165.85,10.17184749]
[1752504744068,0.06,165.9,165.85,16.78468397]
[1752504744267,0.06,165.9,165.84,26.95653146]
[1752504744475,0.06,165.9,165.85,0.60295447]
[1752504744664,0.06,165.9,165.84,16.78468397]
[1752504744976,0.06,165.9,165.85,10.17184749]
[1752504745156,0.06,165.9,165.87,16.78468397]
[1752504745357,0.06,165.9,165.89,16.78468397]